bitfinex/quotes_ETHUSD_20240530
["timestamp","ask_amount","ask_price","bid_price","bid_amount"]
[1717106768683,2.66579,3751.3,3750.7,1.32213922]
[1717106768882,0.06351715,3751.2,3750.7,1.32213922]
[1717106769238,2.66579,3751.3,3750.7,1.32213922]
[1717106769685,0.0627186,3751.2,3750.7,1.32213922]
[1717106770052,2.66595,3751.0,3750.4,7.3]
[1717106770253,2.66595,3751.0,3750.4,1.32213922]
[1717106770489,0.06273762,3750.9,3750.4,1.32213922]
[1717106771886,2.66613,3750.8,3750.0,7.3]
[1717106772054,2.66613,3750.8,3750.0,8.62213922]
[1717106772253,2.66624,3750.6,3750.0,8.62213922]
[1717106773862,2.66624,3750.6,3749.6,19.51]
[1717106774090,2.66648,3750.3,3749.6,20.83213922]
[1717106775586,2.66648,3750.3,3749.7,1.32213922]
[1717106777525,2.66661,3750.1,3749.6,19.51]
[1717106777695,2.66661,3750.1,3749.6,20.83213922]
[1717106778829,2.66684,3749.8,3749.0,7.3294]
[1717106778998,2.66684,3749.8,3749.1,1.32213922]
[1717106779197,4.92146,3750.2,3749.2,2.66721]
[1717106779403,4.92146,3750.2,3749.4,2.66707]
[1717106779404,2.66656,3750.2,3749.4,2.66707]
[1717106779744,0.06259194,3750.1,3749.5,1.32213922]
[1717106779887,0.06259194,3750.1,3749.6,0.39892092]
[1717106780088,0.06259194,3750.1,3749.7,1.32213922]
[1717106781528,0.06259194,3750.1,3749.7,3.98898922]
[1717106781891,2.66627,3750.6,3749.7,3.98898922]
[1717106782263,2.66647,3750.3,3749.4,7.3]
[1717106782389,2.66647,3750.3,3749.5,1.32213922]
[1717106784552,2.66668,3750.0,3749.4,7.3]
[1717106784782,2.66668,3750.0,3749.4,8.62213922]
[1717106785093,0.06262822,3749.9,3749.4,8.62213922]
[1717106785407,2.66668,3750.0,3749.4,8.62213922]
[1717106785806,2.66689,3749.7,3749.4,7.3]
[1717106786034,2.66689,3749.7,3748.9,37.6674]
[1717106786226,2.66689,3749.7,3749.0,3.99714685]
[1717106786414,2.66689,3749.7,3749.0,1.35153922]
[1717106787017,2.809,3750.2,3749.0,0.0294]
[1717106787233,2.66725,3749.2,3749.0,0.0294]
[1717106787561,0.06157573,3749.1,3749.0,0.0294]
[1717106788825,0.06157573,3749.1,3749.0,1.35153922]
[1717106789061,0.06157573,3749.1,3749.0,2.48344414]
[1717106789200,2.4072,3750.2,3749.0,2.48344414]
[1717106789526,2.6667,3750.0,3749.1,3.98942922]
[1717106790821,2.66643,3750.4,3749.1,3.98942922]
[1717106791131,2.66673,3750.0,3749.0,1.16130492]
[1717106791300,2.2807,3749.8,3749.0,0.0294]
[1717106791499,2.66729,3749.2,3749.0,0.0294]
[1717106791705,0.0614184,3749.1,3749.0,0.0294]
[1717106792038,2.66729,3749.2,3749.0,0.0294]
[1717106792435,0.06133147,3749.1,3749.0,0.0294]
[1717106792641,2.66729,3749.2,3749.0,0.0294]
[1717106792968,0.06122272,3749.1,3749.0,0.0294]
[1717106793327,2.66729,3749.2,3749.0,0.0294]
[1717106793566,0.06191014,3749.1,3749.0,0.0294]
[1717106793937,2.667,3749.6,3749.0,0.0294]
[1717106794471,0.0619695,3749.5,3749.0,0.0294]
[1717106796788,0.0619695,3749.5,3749.1,1.32213922]
[1717106797150,0.0619695,3749.5,3749.1,2.18729314]
[1717106797348,0.0619695,3749.5,3749.1,37.18729314]
[1717106797549,2.3737,3750.7,3749.1,37.18729314]
[1717106797804,2.3737,3750.7,3749.2,7.3]
[1717106798101,2.66645,3750.4,3749.3,3.98929922]
[1717106798300,0.06161961,3750.3,3749.4,1.21544531]
[1717106798446,0.06161961,3750.3,3749.5,1.32213922]
[1717106798654,2.66645,3750.4,3749.5,1.32213922]
[1717106799773,5.03986,3750.7,3749.7,2.66686]
[1717106799969,5.03986,3750.7,3749.9,2.66671]
[1717106800160,5.03986,3750.7,3749.9,3.98884922]
[1717106800503,0.06278151,3750.6,3749.9,3.98884922]
[1717106803059,2.66634,3750.5,3749.6,7.3]
[1717106803259,2.66634,3750.5,3749.7,1.32213922]
[1717106803893,2.66654,3750.2,3749.6,7.3]
[1717106804209,0.06236378,3750.1,3749.6,7.3]
[1717106805374,0.06236378,3750.1,3749.1,9.96724]
[1717106805576,0.06236378,3750.1,3749.2,4.32213922]
[1717106805787,2.66654,3750.2,3749.3,2.66714]
[1717106805975,2.66654,3750.2,3749.4,3.0]
[1717106806487,0.06236378,3750.1,3749.5,2.667]
[1717106806886,0.06236378,3750.1,3749.5,3.36591392]
[1717106808658,0.06236378,3750.1,3749.5,2.667]
[1717106809701,0.06236378,3750.1,3749.6,1.32213922]
[1717106810006,2.66631,3750.5,3749.6,1.32213922]
[1717106810205,2.66631,3750.5,3749.7,2.66682]
[1717106810509,0.06252324,3750.4,3749.8,1.32213922]
[1717106811060,0.06252324,3750.4,3749.9,2.66672]
[1717106811267,2.6661,3750.8,3749.9,3.98885922]
[1717106811480,0.06269196,3750.7,3749.9,3.98885922]
[1717106813066,2.6661,3750.8,3749.9,3.98885922]
[1717106814309,0.0626678,3750.7,3749.9,3.98885922]
[1717106820286,0.0626678,3750.7,3750.1,2.66657]
[1717106820487,2.3843,3751.0,3750.2,1.32213922]
[1717106820708,2.66586,3751.2,3750.3,2.66644]
[1717106820709,0.06292183,3750.9,3750.3,2.66644]
[1717106820917,2.66586,3751.2,3750.4,1.32213922]
[1717106821128,0.06300799,3751.1,3750.4,1.32213922]
[1717106821327,0.06300799,3751.1,3750.5,2.6663]
[1717106821470,0.06300799,3751.1,3750.6,1.32213922]
[1717106823626,0.06300799,3751.1,3750.7,2.66615]
[1717106823836,2.66557,3751.6,3750.8,1.72096814]
[1717106824123,0.06238713,3751.0,3750.8,1.32213922]
[1717106824326,2.66557,3751.6,3750.8,1.32213922]
[1717106824526,0.06267529,3751.5,3750.9,2.66601]
[1717106824728,0.06267529,3751.5,3751.0,1.72095414]
[1717106824929,2.66557,3751.6,3751.0,1.72095414]
[1717106825095,4.99672,3751.9,3751.1,2.66588]
[1717106825292,2.66532,3751.9,3751.2,1.32213922]
[1717106825494,0.06312866,3751.8,3751.2,1.32213922]
[1717106826330,0.06318525,3751.7,3751.2,1.32213922]
[1717106826533,5.01739,3752.3,3751.3,0.39880192]
[1717106826727,2.6652,3752.1,3751.3,1.32213922]
[1717106826891,0.06352195,3752.0,3751.3,1.32213922]
[1717106829630,2.6652,3752.1,3751.3,1.32213922]
[1717106829872,2.66495,3752.5,3751.4,3.98778922]
[1717106830038,0.55,3752.4,3751.4,3.98778922]
[1717106830331,0.61370955,3752.4,3751.5,0.39877892]
[1717106830540,0.06370955,3752.4,3751.6,3.98762922]
[1717106831224,2.66495,3752.5,3751.6,3.98762922]
[1717106831395,2.66465,3752.9,3751.8,2.66537]
[1717106831591,2.66465,3752.9,3751.8,3.98750922]
[1717106831835,0.06393972,3752.8,3751.8,3.98750922]
[1717106832720,0.55,3752.7,3751.9,0.05330058]
[1717106832942,0.06385839,3752.6,3751.8,3.98750922]
[1717106833111,0.06385839,3752.6,3751.8,4.38626014]
[1717106834857,0.06385839,3752.6,3752.0,2.66523]
[1717106835212,2.66465,3752.9,3752.0,2.66523]
[1717106835410,2.66465,3752.9,3752.0,3.98736922]
[1717106835641,0.06412887,3752.8,3752.0,3.98736922]
[1717106835842,0.06412887,3752.8,3752.0,4.42598123]
[1717106836056,2.66465,3752.9,3752.0,4.42598123]
[1717106836350,0.06398663,3752.8,3752.0,4.42598123]
[1717106836525,2.66465,3752.9,3752.0,4.42598123]
[1717106836705,0.06416598,3752.8,3752.0,4.42598123]
[1717106836911,2.66465,3752.9,3752.0,4.42598123]
[1717106837170,0.06402374,3752.8,3752.0,4.42598123]
[1717106837330,2.66465,3752.9,3752.0,4.42598123]
[1717106837541,0.06402374,3752.8,3752.0,4.42598123]
[1717106837734,2.66465,3752.9,3752.0,3.98736922]
[1717106838056,0.06419038,3752.8,3752.0,3.98736922]
[1717106838554,2.66465,3752.9,3752.0,3.98736922]
[1717106838761,0.06404815,3752.8,3752.0,3.98736922]
[1717106838928,2.66465,3752.9,3752.0,3.98736922]
[1717106839132,0.06404815,3752.8,3752.0,4.38610614]
[1717106839328,2.66465,3752.9,3752.0,4.38610614]
[1717106839541,0.06335372,3752.8,3752.0,4.38610614]
[1717106839854,2.66465,3752.9,3752.0,4.38610614]
[1717106840377,0.06323589,3752.8,3752.2,2.66509]
[1717106840735,2.4521,3753.1,3752.2,2.66509]
[1717106841059,0.06130395,3753.0,3752.2,3.10368661]
[1717106841221,0.06130395,3753.0,3752.2,4.42582583]
[1717106841663,2.72584395,3753.0,3752.2,4.42582583]
[1717106841958,2.72584395,3753.0,3752.2,3.98722922]
[1717106842733,2.66475,3752.7,3751.8,9.96534]
[1717106842934,2.66504,3752.3,3751.8,7.3]
[1717106843151,0.06109068,3752.2,3751.8,7.3]
[1717106843337,2.66504,3752.3,3751.8,7.3]
[1717106843539,0.06106705,3752.2,3751.8,7.3]
[1717106843754,2.66504,3752.3,3751.8,7.3]
[1717106843950,0.06085154,3752.2,3751.8,7.3]
[1717106844254,2.66504,3752.3,3751.8,7.3]
[1717106844453,0.06092311,3752.1,3751.8,7.3]
[1717106844654,2.66518,3752.1,3751.4,2.6656]
[1717106844824,0.06083321,3752.0,3751.4,1.32213922]
[1717106845162,2.66518,3752.1,3751.4,1.32213922]
[1717106845797,2.66495,3752.5,3751.5,1.32213922]
[1717106845942,2.66495,3752.5,3751.6,2.66551]
[1717106846126,2.66495,3752.5,3751.7,1.32213922]
[1717106846321,0.05881397,3752.4,3751.8,0.39876492]
[1717106846521,0.05881397,3752.4,3751.8,1.32213922]
[1717106848132,2.66504,3752.3,3751.8,1.32213922]
[1717106848334,0.05870741,3752.2,3751.8,1.32213922]
[1717106848527,2.66504,3752.3,3751.8,1.32213922]
[1717106848724,0.05868299,3752.2,3751.8,1.32213922]
[1717106848928,2.66504,3752.3,3751.8,1.32213922]
[1717106849169,0.05865858,3752.2,3751.8,1.32213922]
[1717106849328,2.66504,3752.3,3751.8,1.32213922]
[1717106849667,0.05863947,3752.2,3751.8,1.32213922]
[1717106850041,2.66504,3752.3,3751.8,1.32213922]
[1717106850243,0.05859839,3752.1,3751.8,1.32213922]
[1717106850573,0.058552,3752.0,3751.8,1.32213922]
[1717106850977,2.66524,3752.1,3751.3,1.296588]
[1717106851276,2.66524,3752.1,3751.3,4.32213922]
[1717106852175,2.66538,3751.9,3751.2,7.3]
[1717106852328,0.05846795,3751.8,3751.2,8.62213922]
[1717106852565,0.05846795,3751.8,3751.2,10.70535314]
[1717106852765,2.66538,3751.9,3751.2,10.70535314]
[1717106855119,2.66538,3751.9,3751.2,3.40535314]
[1717106861306,2.66554,3751.6,3750.8,7.3]
[1717106861474,2.66554,3751.6,3750.9,1.32213922]
[1717106862890,2.66531,3752.0,3751.0,0.0533123]
[1717106863089,2.66531,3752.0,3751.1,2.18968437]
[1717106867382,5.15766,3751.0,3750.8,7.3]
[1717106867604,0.05797884,3750.9,3750.8,7.3]
[1717106872735,2.66624,3750.6,3749.9,7.3]
[1717106872938,2.66624,3750.6,3750.0,1.32213922]
[1717106873137,0.05769545,3750.5,3750.0,1.32213922]
[1717106873357,2.66624,3750.6,3750.0,1.32213922]
[1717106879064,0.05780529,3750.5,3750.0,1.32213922]
[1717106880967,0.892,3750.2,3749.6,3.0]
[1717106881176,2.66659,3750.1,3749.6,2.35213922]
[1717106883657,3.55859,3750.1,3749.6,1.32213922]
[1717106883846,2.66659,3750.1,3749.6,1.32213922]
[1717106890600,0.05708087,3750.0,3749.6,1.32213922]
[1717106890811,0.05708087,3750.0,3749.3,3.892]
[1717106890812,0.05708087,3750.0,3749.7,1.32213922]
[1717106891107,2.66576,3751.3,3750.2,2.66652]
[1717106891306,2.66576,3751.3,3750.4,0.892]
[1717106891482,2.66576,3751.3,3750.5,1.32213922]
[1717106892106,0.892,3751.2,3750.5,1.32213922]
[1717106894227,2.66576,3751.3,3750.5,1.32213922]
[1717106894522,0.892,3751.2,3750.5,1.32213922]
[1717106896224,0.892,3751.2,3750.5,1.81020514]
[1717106898082,0.266519,3752.0,3750.1,7.3]
[1717106898083,0.892,3750.6,3750.1,7.3]
[1717106898281,0.892,3750.4,3750.1,7.3]
[1717106898828,0.051445,3750.3,3750.1,7.3]
[1717106899038,0.892,3750.6,3750.1,7.3]
[1717106899335,0.05164245,3750.2,3750.1,7.3]
[1717106899633,0.05162573,3750.2,3750.1,7.3]
[1717106899858,0.892,3750.6,3750.1,7.3]
[1717106899992,0.05162573,3750.2,3750.1,7.3]
[1717106900191,0.892,3750.6,3750.1,7.3]
[1717106900624,0.05163228,3750.5,3750.1,7.3]
[1717106902001,0.05163228,3750.5,3749.8,5.66674]
[1717106902200,0.892,3750.6,3749.8,8.37475322]
[1717106902507,0.892,3750.6,3749.9,1.32213922]
[1717106902713,4.96196,3751.2,3750.0,2.66663]
[1717106902937,0.892,3750.9,3750.1,1.32213922]
[1717106903238,4.96196,3751.2,3750.2,2.66649]
[1717106903434,2.931769,3752.0,3750.5,2.6663]
[1717106903435,0.05133919,3751.1,3750.5,2.6663]
[1717106903641,0.892,3751.2,3750.6,1.32213922]
[1717106904026,0.05147914,3751.1,3750.6,1.32213922]
[1717106905538,0.05147914,3751.1,3750.6,1.81018314]
[1717106906130,0.892,3751.4,3750.6,1.81018314]
[1717106906333,0.05141423,3751.0,3750.6,1.81018314]
[1717106906525,0.892,3751.4,3750.6,1.81018314]
[1717106909040,2.66558,3751.6,3750.6,1.81018314]
[1717106909240,0.892,3751.3,3750.6,1.81018314]
[1717106910998,2.66558,3751.6,3750.7,3.11379831]
[1717106911231,3.55758,3751.6,3750.8,1.32213922]
[1717106911635,0.05176107,3751.5,3750.8,1.32213922]
[1717106913854,0.05176107,3751.5,3750.9,2.66602]
[1717106914050,0.05176107,3751.5,3751.0,1.32213922]
[1717106914826,0.05176107,3751.5,3746.5,2.66913]
[1717106914827,2.66589,3751.1,3750.2,5.66652]
[1717106915049,0.892,3750.8,3750.2,5.66652]
[1717106915361,0.05154472,3750.7,3750.2,5.66652]
[1717106915730,0.892,3751.0,3750.2,5.66652]
[1717106916168,0.05167378,3750.9,3750.2,5.66652]
[1717106916345,0.05167378,3750.9,3750.2,2.66652]
[1717106917567,0.05167378,3750.9,3750.4,1.32213922]
[1717106918364,2.66589,3751.1,3750.4,1.32213922]
[1717106918692,0.05160109,3750.8,3750.4,1.32213922]
[1717106918872,2.66589,3751.1,3750.4,1.32213922]
[1717106920352,2.66589,3751.1,3750.4,2.54020514]
[1717106921172,2.66566,3751.5,3750.5,2.66631]
[1717106921359,3.55766,3751.5,3750.6,1.32213922]
[1717106921559,3.55766,3751.5,3750.7,2.66616]
[1717106921798,0.05171106,3751.4,3750.8,1.32213922]
[1717106922593,2.66575,3751.3,3750.8,1.32213922]
[1717106922901,0.05159867,3751.2,3750.8,1.32213922]
[1717106923272,2.66575,3751.3,3750.8,1.32213922]
[1717106923472,0.05155757,3751.1,3750.8,1.32213922]
[1717106923675,0.05159867,3751.2,3750.8,1.32213922]
[1717106923895,2.66575,3751.3,3750.8,1.32213922]
[1717106923896,0.05149975,3751.0,3750.8,1.32213922]
[1717106924207,2.66575,3751.3,3750.8,1.32213922]
[1717106924510,0.05158196,3751.2,3750.8,1.32213922]
[1717106924859,2.66575,3751.3,3750.8,1.32213922]
[1717106925606,0.05167787,3751.2,3750.8,1.32213922]
[1717106925977,2.66575,3751.3,3750.8,1.32213922]
[1717106926179,0.05163676,3751.1,3750.8,1.32213922]
[1717106926500,0.05159566,3751.0,3750.8,1.32213922]
[1717106926673,2.66575,3751.3,3750.8,1.32213922]
[1717106926874,0.05154743,3750.9,3750.8,1.32213922]
[1717106927074,2.66575,3751.3,3750.8,1.32213922]
[1717106927273,0.05148182,3750.9,3750.8,1.32213922]
[1717106927501,2.66575,3751.3,3750.8,1.32213922]
[1717106927700,0.05148182,3750.9,3750.8,1.32213922]
[1717106927908,2.66575,3751.3,3750.8,1.32213922]
[1717106928205,0.0502151,3750.9,3750.8,1.32213922]
[1717106928410,0.892,3751.2,3750.8,1.32213922]
[1717106928614,0.05014739,3750.9,3750.8,1.32213922]
[1717106928913,0.05029657,3750.9,3750.8,1.32213922]
[1717106929117,0.892,3751.2,3750.8,1.32213922]
[1717106929411,0.05025729,3750.9,3750.8,1.32213922]
[1717106930014,0.05025729,3750.9,3750.1,3.55858]
[1717106930223,3.3529,3751.2,3750.4,1.32213922]
[1717106930518,2.6661,3750.8,3750.4,1.32213922]
[1717106931120,0.05013811,3750.7,3750.4,1.32213922]
[1717106931320,0.05013811,3750.7,3749.9,12.21]
[1717106931523,2.71634028,3750.6,3750.0,1.32213922]
[1717106931722,0.27163403,3750.5,3750.0,1.32213922]
[1717106931887,2.71634028,3750.6,3750.0,1.32213922]
[1717106932222,0.04983209,3750.4,3750.0,1.32213922]
[1717106932388,0.04987322,3750.5,3750.0,1.32213922]
[1717106932583,0.04979097,3750.3,3750.0,1.32213922]
[1717106932829,2.66646,3750.3,3749.8,7.3]
[1717106932989,2.6666,3750.1,3749.8,7.3]
[1717106934289,2.6666,3750.1,3749.2,19.51]
[1717106934483,2.6666,3750.1,3749.3,2.21413922]
[1717106934891,2.6666,3750.1,3749.3,1.32213922]
[1717106935083,2.6666,3750.1,3749.3,2.21413922]
[1717106936243,2.6666,3750.1,3749.4,0.95141392]
[1717106936400,2.6666,3750.1,3749.4,2.27355314]
[1717106938597,2.66681,3749.8,3749.2,7.3]
[1717106938797,2.66681,3749.8,3749.3,1.32213922]
[1717106939224,2.66681,3749.8,3749.4,0.892]
[1717106939540,0.04930701,3749.7,3749.4,0.892]
[1717106940120,0.04930701,3749.7,3749.5,3.98915922]
[1717106940316,0.04930701,3749.7,3749.6,3.892]
[1717106940515,5.04901,3751.0,3749.7,2.66682]
[1717106940839,5.04959,3750.1,3749.6,7.3]
[1717106941040,0.504959,3750.0,3749.4,0.892]
[1717106941245,0.504959,3750.0,3749.2,2.66723]
[1717106941246,0.04780178,3750.0,3749.5,1.32213922]
[1717106941401,0.04780178,3750.0,3749.6,0.892]
[1717106941602,5.99727,3750.5,3749.6,0.892]
[1717106941817,0.04765093,3749.9,3749.6,0.892]
[1717106942017,5.99727,3750.5,3749.6,0.892]
[1717106942356,2.66637,3750.5,3749.9,0.892]
[1717106942551,0.04787974,3750.4,3749.9,2.21413922]
[1717106942815,0.04787974,3750.4,3749.9,1.32213922]
[1717106943397,2.66645,3750.3,3749.5,2.66701]
[1717106943624,0.04787974,3750.4,3750.0,0.892]
[1717106943756,0.04799236,3750.2,3750.1,1.67801822]
[1717106944093,0.892,3750.8,3749.8,2.66679]
[1717106944313,0.892,3750.8,3749.9,1.32213922]
[1717106944462,0.04807379,3750.7,3749.9,1.32213922]
[1717106944662,2.3799,3750.4,3749.8,2.66679]
[1717106944891,2.3799,3750.4,3749.8,3.55879]
[1717106945287,0.504621,3750.3,3749.4,2.66702]
[1717106945486,0.04785141,3750.2,3749.6,0.892]
[1717106945692,0.04785141,3750.2,3749.7,1.32213922]
[1717106946004,0.04780268,3750.1,3749.7,1.32213922]
[1717106946305,2.296,3751.2,3749.8,1.32213922]
[1717106946501,2.296,3751.2,3749.9,2.66673]
[1717106946502,0.04599891,3750.0,3749.9,2.66673]
[1717106946707,2.6659,3751.1,3749.9,39.88086922]
[1717106946892,2.6659,3751.1,3750.7,0.892]
[1717106947095,3.16209,3751.1,3750.5,0.892]
[1717106950041,2.66642,3750.4,3749.8,7.3]
[1717106950276,2.66642,3750.4,3749.8,0.892]
[1717106950452,0.04612603,3750.3,3749.8,0.892]
[1717106950582,0.04612603,3750.3,3750.0,0.892]
[1717106951301,0.04612603,3750.3,3749.8,0.892]
[1717106951785,2.66653,3750.2,3749.8,0.892]
[1717106952189,2.66653,3750.2,3749.4,7.3]
[1717106952190,2.66669,3750.0,3749.4,7.3]
[1717106952438,2.66669,3750.0,3749.4,8.62213922]
[1717106953169,2.66692,3749.7,3749.4,7.3]
[1717106954757,4.95812,3750.1,3749.4,1.32213922]
[1717106955233,0.04579889,3750.0,3749.4,1.32213922]
[1717106958727,0.31704078,3750.0,3749.0,0.0294]
[1717106958928,2.66682,3749.8,3749.1,1.32213922]
[1717106959699,2.66682,3749.8,3749.0,0.0294]
[1717106959901,2.66705,3749.5,3749.0,0.0294]
[1717106962546,0.04550613,3749.4,3749.0,0.0294]
[1717106963822,2.66717,3749.3,3749.0,0.0294]
[1717106964209,0.04538532,3749.2,3749.0,0.0294]
[1717106964549,2.6673,3749.1,3749.0,0.0294]
[1717106964754,2.71264417,3749.1,3749.0,0.0294]
[1717106968757,2.6673,3749.1,3749.0,0.0294]
[1717106968945,2.71252217,3749.1,3749.0,0.0294]
[1717106969457,0.04522217,3749.1,3749.0,1.35153922]
[1717106969641,0.04522217,3749.1,3749.0,1.48669314]
[1717106969842,2.66706,3749.5,3749.0,1.48669314]
[1717106970055,2.66706,3749.5,3749.0,1.35153922]
[1717106970223,0.04373349,3749.4,3749.0,1.35153922]
[1717106972358,0.04373349,3749.4,3749.1,1.32213922]
[1717106972749,2.66706,3749.5,3749.1,1.32213922]
[1717106973871,2.66679,3749.9,3749.1,1.32213922]
[1717106974098,2.66679,3749.9,3749.2,0.13515392]
[1717106974260,0.04399243,3749.8,3749.3,1.32213922]
[1717106974462,2.66692,3749.7,3749.0,0.0294]
[1717106974644,2.4429,3749.6,3749.0,1.35153922]
[1717106974849,2.48681015,3749.6,3749.0,1.35153922]
[1717106982477,2.48681015,3749.6,3749.1,0.893]
[1717106983061,2.66703,3749.5,3749.1,0.893]
[1717106983266,2.66703,3749.5,3749.0,2.24453922]
[1717106983465,0.0438193,3749.4,3749.0,2.24453922]
[1717106989804,2.66717,3749.3,3749.0,0.0294]
[1717106990048,2.71095242,3749.3,3749.0,0.0294]
[1717106990934,2.71095242,3749.3,3749.0,0.9224]
[1717106991107,2.71095242,3749.3,3749.0,2.24453922]
[1717106992127,2.71095242,3749.3,3749.0,1.35153922]
[1717106992853,2.6673,3749.1,3749.0,0.0294]
[1717106993355,2.71092105,3749.1,3749.0,0.0294]
[1717106994864,3.26092105,3749.1,3749.0,0.0294]
[1717106998279,2.71092105,3749.1,3749.0,0.0294]
[1717107006171,0.04362105,3749.1,3749.0,2.24453922]
[1717107006382,0.04362105,3749.1,3749.0,2.46899314]
[1717107006562,2.4672,3750.1,3749.0,2.46899314]
[1717107006902,2.4672,3750.1,3749.2,0.893]
[1717107007087,2.66689,3749.7,3749.2,0.893]
[1717107008577,2.66689,3749.7,3749.2,2.21513922]
[1717107008812,2.66689,3749.7,3749.3,0.24689931]
[1717107009213,0.04092852,3749.6,3749.4,0.893]
[1717107009591,2.66689,3749.7,3749.4,0.893]
[1717107009995,0.04092852,3749.6,3749.4,0.893]
[1717107010309,2.66689,3749.7,3749.4,0.893]
[1717107010504,2.66689,3749.7,3749.2,2.21513922]
[1717107010733,0.04092852,3749.6,3749.2,2.21513922]
[1717107010864,2.66689,3749.7,3749.2,1.32213922]
[1717107011064,2.66689,3749.7,3749.2,2.21513922]
[1717107012339,2.66711,3749.4,3749.0,0.0294]
[1717107012824,0.0408051,3749.3,3749.0,0.0294]
[1717107013533,2.66711,3749.4,3749.0,0.0294]
[1717107015334,2.66688,3749.7,3749.3,0.893]
[1717107015685,0.04092852,3749.6,3749.3,0.893]
[1717107017603,0.04092852,3749.6,3749.5,0.893]
[1717107017803,4.99657,3750.0,3749.5,0.893]
[1717107018133,0.04086538,3749.6,3749.5,0.893]
[1717107018287,4.99657,3750.0,3749.5,0.893]
[1717107018489,0.04085013,3749.6,3749.5,0.893]
[1717107018687,4.99657,3750.0,3749.5,0.893]
[1717107018985,2.66667,3750.0,3749.7,0.893]
[1717107019212,0.04104668,3749.9,3749.7,0.893]
[1717107019415,2.4598,3749.7,3749.0,7.3294]
[1717107019621,2.6673,3749.2,3749.0,7.3294]
[1717107020005,0.04096541,3749.1,3749.0,7.3294]
[1717107025039,0.04096541,3749.1,3749.0,0.0294]
[1717107026743,2.38566541,3749.1,3749.0,0.0294]
[1717107026906,2.89096195,3749.1,3749.0,0.0294]
[1717107028214,3.44096195,3749.1,3749.0,0.0294]
[1717107031549,3.46802429,3749.1,3749.0,0.0294]
[1717107032235,0.06802775,3749.1,3749.0,0.0294]
[1717107032443,2.6673,3749.2,3749.0,0.0294]
[1717107033113,0.06783187,3749.1,3749.0,0.0294]
[1717107052100,3.27043187,3749.1,3749.0,0.0294]
[1717107052306,2.3096,3748.8,3748.3,7.3]
[1717107052505,2.66747,3748.9,3748.3,7.3]
[1717107052506,0.893,3748.6,3748.3,7.3]
[1717107052803,2.3096,3748.5,3748.3,7.3]
[1717107052964,2.66803,3748.1,3747.5,7.3]
[1717107053315,2.66803,3748.1,3747.5,8.193]
[1717107053905,2.77583584,3749.4,3748.0,0.893]
[1717107054105,0.57673641,3749.3,3748.8,0.893]
[1717107054281,2.66723,3749.2,3748.3,2.66786]
[1717107054475,2.66723,3749.2,3748.6,0.893]
[1717107055204,2.296,3748.9,3748.0,7.3]
[1717107055406,2.296,3748.0,3747.5,7.3]
[1717107055608,2.296,3748.0,3747.1,0.01382128]
[1717107055609,0.893,3747.9,3747.1,7.31382128]
[1717107056523,2.296,3748.0,3747.1,7.31382128]
[1717107056673,3.189,3748.0,3747.1,7.31382128]
[1717107056873,2.66816,3747.9,3747.1,7.31382128]
[1717107057594,3.253876,3747.9,3747.1,7.31382128]
[1717107057764,0.893,3747.8,3747.1,7.31382128]
[1717107058419,3.253876,3747.9,3747.1,7.31382128]
[1717107058624,0.893,3747.8,3747.1,7.31382128]
[1717107061018,2.66816,3747.9,3747.1,7.31382128]
[1717107062291,2.66816,3747.9,3747.5,0.893]
[1717107062537,2.66816,3747.9,3747.4,0.893]
[1717107063531,2.66816,3747.9,3747.7,999.40035823]
[1717107064436,3.56116,3747.9,3747.7,996.7547506]
[1717107067231,2.66816,3747.9,3747.7,996.7547506]
[1717107071344,2.66793,3748.3,3747.7,997.6477506]
[1717107071659,2.66793,3748.3,3748.0,0.893]
[1717107072946,2.3915,3749.8,3748.3,0.0303]
[1717107073103,0.5767094,3749.7,3748.3,7.3303]
[1717107073305,3.2845,3749.8,3748.8,0.893]
[1717107073622,0.96359402,3749.7,3748.8,0.893]
[1717107073818,0.38688756,3749.7,3748.8,0.893]
[1717107074024,2.66726,3749.2,3748.8,0.893]
[1717107074790,2.66726,3749.2,3748.3,7.3303]
[1717107074791,0.05812299,3749.1,3749.0,0.893]
[1717107075177,0.05812299,3749.1,3748.8,0.893]
[1717107076202,0.05812299,3749.1,3748.7,0.893]
[1717107076203,2.6674,3749.0,3748.7,0.893]
[1717107076407,2.6674,3749.0,3748.3,7.3303]
[1717107077196,2.66763,3748.7,3748.3,7.3]
[1717107080904,2.66763,3748.7,3747.8,9.9682]
[1717107081049,2.66763,3748.7,3747.8,11.29033922]
[1717107081767,2.3613,3749.1,3747.8,11.29033922]
[1717107081768,5.02866,3749.1,3747.8,11.29033922]
[1717107081965,0.55,3749.0,3747.8,11.29033922]
[1717107082208,0.55,3749.0,3748.0,2.66808]
[1717107082969,2.66736,3749.1,3748.2,2.66791]
[1717107083307,2.66736,3749.1,3748.2,3.99004922]
[1717107084968,5.03679,3749.5,3748.2,3.99004922]
[1717107085171,2.66725,3749.2,3748.4,2.66775]
[1717107085618,0.05519731,3749.1,3748.4,2.66775]
[1717107090130,0.55,3749.4,3748.4,2.66775]
[1717107090334,0.055137,3749.0,3748.4,2.66775]
[1717107090535,0.55,3749.4,3748.4,3.10997241]
[1717107090829,0.55,3749.4,3748.2,1.32213922]
[1717107090830,0.05513544,3748.9,3748.2,2.6679]
[1717107091032,2.66724,3749.2,3748.2,2.6679]
[1717107091239,0.55,3749.1,3748.2,2.6679]
[1717107098459,0.55,3749.1,3748.2,3.5609]
[1717107100984,0.55,3749.1,3748.2,2.6679]
[1717107101262,0.411024,3749.0,3748.2,2.6679]
[1717107101923,2.3616,3748.9,3748.2,2.6679]
[1717107102366,0.893,3748.7,3747.9,2.66814]
[1717107102856,0.55,3748.6,3747.9,2.66814]
[1717107103841,0.55,3748.8,3747.9,2.66814]
[1717107104025,1.2383124,3748.8,3747.9,2.66814]
[1717107105955,5.0291,3748.9,3748.2,3.56094]
[1717107106539,5.0291,3748.9,3748.2,2.66794]
[1717107108645,2.3616,3748.9,3748.2,2.66794]